[Event "1st Doppelbauer Kiel IM 2022"]
[Site "Kiel"]
[Date "2022.07.01"]
[Round "4.2"]
[White "Arndt, Magnus"]
[Black "Kopylov, Daniel"]
[Result "1-0"]
[ECO "D72"]
[WhiteElo "2343"]
[BlackElo "2292"]
[Annotator "TA"]
[PlyCount "147"]
[EventDate "2022.06.30"]
[EventType "tourn"]
[EventCountry "GER"]
[SourceTitle "playchess.com"]
[Source "ChessBase"]
[SourceQuality "1"]
[TimeControl "40/5400+30:1800+30"]

{[%evp 23,147,0,0,0,0,-32,0,-36,11,-20,0,-22,0,-6,0,0,25,-20,-25,-16,-8,-229,-34,-16,-42,-41,-27,0,52,47,117,137,117,115,142,141,387,386,386,386,549,386,386,319,320,304,359,359,341,341,423,423,423,423,423,416,429,422,429,429,414,407,452,452,452,452,452,452,452,452,652,452,652,634,1017,1008,967,941,951,893,935,851,677,607,517,517,864,797,29972,29972,29973,29974,29974,29974,29973,29974,29975,29976,29976,29977,29977,29977,29976,29969,29974,29974,29983,29984,29983,29984,29984,29979,29978,29973,29971,29974,29986,29987,29988,29984,29984,29985,29991,29990,29992,77]} 1. d4 {[%emt 0:00:16]} Nf6 {[%emt 0:16:50]} 2. c4 {[%emt 0:00:10]} g6 {[%emt 0:05:06]} 3. g3 {[%emt 0:00:04]} Bg7 {[%emt 0:00:38]} 4. Bg2 {[%emt 0:00:05]} d5 {[%emt 0:00:36]} 5. cxd5 {[%emt 0:01:00]} Nxd5 {[%emt 0:00:32]} 6. e4 {[%emt 0:00:12]} Nb6 {[%emt 0:00:43]} 7. Ne2 {[%emt 0:00:06]} O-O {[%emt 0:00:51]} 8. O-O {[%emt 0:00:15]} c5 {[%emt 0:00:35]} 9. d5 {[%emt 0:00:11]} e6 {[%emt 0:00:45]} 10. Nec3 {[%emt 0:00:59]} Na6 {[%emt 0:09:14]} 11. a4 {[%emt 0:01:13]} exd5 {[%emt 0:03:13]} 12. exd5 {[%emt 0:00:18]} Bf5 {[%emt 0:00:23]} 13. Na3 {[%emt 0:16:52] D72: Fianchetto Grünfeld: 5 cxd5 Nxd5 6 e4 Nb6 (without Nf3).} Nb4 {[%emt 0:03:26]} 14. a5 {[%emt 0:29:42]} Nd7 {[%emt 0:05:05]} 15. Be3 {[%emt 0:03:27] The position is equal.} Rc8 {[%emt 0:11:29] [#]} (15... b6 $15 {is more appropriate.}) 16. Qb3 $146 {[%emt 0:24:08]} ({Predecessor:} 16. d6 Bd3 17. Re1 Qxa5 18. Nc2 Bxc2 19. Rxa5 Bxd1 20. Rxd1 Nc6 {½-½ (20) Vavrak,P (2487)-Kempinski,R (2587) Benidorm 2009}) 16... Re8 {[%emt 0:03:39]} 17. Ncb5 {[%emt 0:01:18]} Qf6 {[%emt 0:06:12] Prevents Nd6.} (17... Qxa5 18. Nd6 $16) 18. Nc4 {[%emt 0:07:02]} Bc2 {[%emt 0:09:38]} 19. Qa3 {[%emt 0:00:28]} Bd3 {[%emt 0:02:42]} (19... Bf8 $5 {[%cal Rf6a6]} 20. a6 (20. Nxa7 Ra8 $17) 20... bxa6 21. Nxa7 Ra8 $11) 20. Rfc1 {[%emt 0:00:46]} Bxc4 {[%emt 0:05:53]} 21. Rxc4 {[%emt 0:00:02]} a6 {[%emt 0:01:14]} ({Resist} 21... Qxb2 22. Qxb2 Bxb2 23. Rd1 $16) 22. Nd4 {[%emt 0:10:40] [#]} cxd4 $2 {[%emt 0:06:11]} (22... b5 $1 $19 {[%cal Rb5c4]} 23. axb6 Nxb6 24. Rxb4 cxb4 25. Qxa6 Nc4 26. Qxf6 Bxf6) 23. Bxd4 $15 {[%emt 0:00:07] [#] This bishop pair is nice.} Rxc4 $1 {[%emt 0:01:37]} 24. Bxf6 {[%emt 0:00:06]} Bxf6 {[%emt 0:00:21]} 25. Rd1 {[%emt 0:01:24] b3 is the strong threat.} Nc2 {[%emt 0:04:28]} (25... Nc5 $11 26. Bf1 Rce4) 26. Qb3 $14 {[%emt 0:00:25][%csl LRb7,LRc4]} Rc5 {[%emt 0:01:32] White leaves nothing to chance now.} ({Black should try} 26... Rc7 $14) 27. Qxb7 $16 {[%emt 0:00:23]} Rd8 {[%emt 0:00:35]} 28. Qxa6 {[%emt 0:01:37]} Kg7 {[%emt 0:00:21]} 29. d6 {[%emt 0:00:35]} Bxb2 $2 {[%emt 0:00:30]} (29... Nd4 $16 {was necessary.}) 30. Qb7 $18 {[%emt 0:00:26]} Bf6 {[%emt 0:00:38]} 31. a6 {[%emt 0:00:14]} Rcc8 {[%emt 0:00:30]} (31... Nd4 {is a better defense.} 32. a7 Rcc8) 32. a7 {[%emt 0:00:42] Strongly threatening Bh3.} Nd4 {[%emt 0:00:32]} 33. Qa6 {[%emt 0:00:30]} Nc5 {[%emt 0:00:06]} 34. Qa2 {[%emt 0:00:21]} Rxd6 {[%emt 0:00:50]} 35. a8=Q {[%emt 0:01:56] Dancing on a razor blade.} Rxa8 {[%emt 0:00:08]} 36. Bxa8 {[%emt 0:00:00]} Ra6 {[%emt 0:00:52]} 37. Qc4 {[%emt 0:00:00][%csl LRc5,LRd4]} Rxa8 {[%emt 0:00:11]} 38. Qxc5 {[%emt 0:00:00]} ({Weaker is} 38. Rxd4 Ra4 $18) 38... Rd8 {[%emt 0:00:01]} 39. Kg2 {[%emt 0:00:00]} Ne6 {[%emt 0:00:20]} 40. Qc2 {[%emt 0:00:00]} Rxd1 {[%emt 0:00:09]} 41. Qxd1 {[%emt 0:29:44]} Nd4 {[%emt 0:10:22]} 42. Kf1 {[%emt 0:00:00]} h5 {[%emt 0:03:35]} 43. h4 {[%emt 0:00:00]} Nf5 {[%emt 0:00:53]} 44. Ke2 {[%emt 0:00:00]} Bd4 {[%emt 0:00:06]} 45. Qd2 {[%emt 0:00:00]} Bf6 {[%emt 0:02:20]} 46. Kd3 {[%emt 0:00:00]} Nd4 {[%emt 0:00:34]} (46... Ba1 $142 47. Ke4 Bf6) 47. Ke4 {[%emt 0:00:00] aiming for Kd5.} Ne6 {[%emt 0:03:23]} (47... Nf5 $142 48. Qd3 Bd4) 48. Kd5 {[%emt 0:00:00]} Nf8 {[%emt 0:00:32]} 49. Kd6 {[%emt 0:00:00]} Kg8 {[%emt 0:00:24]} 50. Qf4 {[%emt 0:00:00]} Kg7 {[%emt 0:00:25]} 51. Qf3 {[%emt 0:00:00]} Bd8 {[%emt 0:00:22]} 52. Qd1 {[%emt 0:00:00]} Bf6 {[%emt 0:00:16]} 53. Kc7 {[%emt 0:00:00]} Be7 {[%emt 0:01:05]} 54. Qd4+ {[%emt 0:00:00]} Bf6 {[%emt 0:00:21]} (54... Kg8 $142) 55. Qd6 {[%emt 0:00:00]} g5 {[%emt 0:00:41]} 56. hxg5 {[%emt 0:00:00] White mates.} Bxg5 {[%emt 0:00:28]} 57. Qe5+ {[%emt 0:00:00]} Kg6 {[%emt 0:00:24]} 58. Qe4+ {[%emt 0:00:00]} Kg7 {[%emt 0:00:27]} 59. Qf5 {[%emt 0:00:00]} Be7 {[%emt 0:06:58]} 60. Qxh5 {[%emt 0:00:00]} Bf6 {[%emt 0:00:06]} 61. Qg4+ {[%emt 0:00:00]} Kh7 {[%emt 0:00:14]} 62. Qf5+ {[%emt 0:00:00]} Kg7 {[%emt 0:00:14]} 63. f4 {[%emt 0:00:00][%cal Bf2f4,Bf4f5][%mdl 32]} Be7 {[%emt 0:01:52]} 64. g4 {[%emt 0:00:00]} f6 {[%emt 0:03:40]} 65. Qd5 {[%emt 0:00:00]} Ng6 {[%emt 0:00:32]} 66. Qc4 {[%emt 0:00:00]} Nf8 {[%emt 0:01:51]} 67. Kc8 {[%emt 0:00:00]} Bd6 {[%emt 0:00:23]} 68. f5 {[%emt 0:00:00]} Nh7 {[%emt 0:01:08]} 69. Kd7 {[%emt 0:00:09]} Bf8 {[%emt 0:00:56]} 70. Ke8 {[%emt 0:00:37]} Ng5 {[%emt 0:00:08]} 71. Qd4 {[%emt 0:00:45]} Nh7 {[%emt 0:01:13]} 72. Qd7+ {[%emt 0:00:37]} Kg8 {[%emt 0:00:42]} 73. Qf7+ {[%emt 0:00:21]} Kh8 {[%emt 0:00:05]} 74. Qxf8+ $2 {[%emt 0:00:16] Weighted Error Value: White=0.25 (precise) /Black=0.44} 1-0

[Event "1st Doppelbauer Kiel IM 2022"]
[Site "Kiel"]
[Date "2022.07.01"]
[Round "4.3"]
[White "Fromm, Marius"]
[Black "Fischer, Daniel"]
[Result "1-0"]
[ECO "B47"]
[WhiteElo "2317"]
[BlackElo "2367"]
[Annotator "TA"]
[PlyCount "113"]
[EventDate "2022.06.30"]
[EventType "tourn"]
[EventCountry "GER"]
[SourceTitle "playchess.com"]
[Source "ChessBase"]
[SourceQuality "1"]
[TimeControl "40/5400+30:1800+30"]

{[%evp 24,113,47,45,49,55,50,52,86,83,84,86,76,83,170,162,148,140,162,171,196,176,183,188,183,186,212,225,195,150,212,217,220,220,212,215,206,198,247,246,248,240,301,299,288,296,304,265,321,298,316,309,275,157,147,118,232,80,154,175,135,216,206,208,218,218,218,218,218,218,218,194,218,171,222,218,229,116,811,789,728,714,1126,1058,1311,1240,1933,1744,5265,3967,1449,1106]} 1. e4 {[%emt 0:00:03]} c5 {[%emt 0:00:05]} 2. Nf3 {[%emt 0:00:03]} e6 {[%emt 0:00:04]} 3. d4 {[%emt 0:00:06]} cxd4 {[%emt 0:00:05]} 4. Nxd4 {[%emt 0:00:05]} Nc6 {[%emt 0:00:30]} 5. Nc3 {[%emt 0:00:04]} Qc7 {[%emt 0:00:12]} 6. g3 {[%emt 0:00:08]} a6 {[%emt 0:00:59]} 7. Bg2 {[%emt 0:00:03]} Nf6 {[%emt 0:00:21]} 8. O-O {[%emt 0:00:05]} Nxd4 {[%emt 0:00:28]} 9. Qxd4 {[%emt 0:00:05]} Bc5 {[%emt 0:00:05]} 10. Bf4 {[%emt 0:00:07]} d6 {[%emt 0:00:14]} 11. Qd2 {[%emt 0:00:07]} h6 {[%emt 0:00:24]} 12. Rad1 {[%emt 0:00:05]} e5 {[%emt 0:00:31]} 13. Be3 {[%emt 0:00:05]} Bb4 {[%emt 0:06:01] [#] B47: Sicilian: Taimanov: 5 Nc3 Qc7 6 f4, 6 g3 and 6 Be2.} 14. Nb5 $1 {[%emt 0:00:17]} axb5 {[%emt 0:00:08]} 15. Qxb4 {[%emt 0:00:04]} O-O {[%emt 0:01:54] White is slightly better.} 16. a3 {[%emt 0:08:59]} (16. Qxb5 Rxa2 17. c4 Be6 $11) 16... Qxc2 {[%emt 0:15:16]} 17. Rxd6 {[%emt 0:14:42][%cal Oe3h6]} Be6 {[%emt 0:15:26]} 18. Rc1 {[%emt 0:15:57] [#]} Qe2 $146 {[%emt 0:02:20]} (18... Qa4 $16) ({Predecessor:} 18... Qa4 19. Qxa4 bxa4 20. Bd2 Rfd8 21. Rxd8+ Rxd8 22. Bc3 Rc8 23. Rd1 Nd7 24. f4 exf4 25. gxf4 {½-½ (57) Delchev,A (2492)-Materia,M (2364) Marseille 2021}) 19. Rd2 $1 $36 {[%emt 0:04:19][%mdl 2048] White is really pushing.} Qh5 {[%emt 0:00:35]} 20. f3 {[%emt 0:00:12] Prevents Ng4. White is more active.} (20. Qxb5 Ng4 21. h4 Nxe3 22. fxe3 Rfd8 $14) 20... Bd7 {[%emt 0:09:47]} 21. Rd6 {[%emt 0:03:30]} Rac8 {[%emt 0:10:15]} 22. Rxc8 {[%emt 0:05:34]} Rxc8 {[%emt 0:00:38]} 23. Qd2 {[%emt 0:00:04][%cal Od6f6] Prevents Rc2.} Bc6 {[%emt 0:03:04]} 24. Qe1 {[%emt 0:06:10]} Bd7 {[%emt 0:05:31]} 25. g4 {[%emt 0:06:52]} Qg6 {[%emt 0:06:16]} 26. Qg3 {[%emt 0:11:09]} h5 {[%emt 0:04:37]} (26... Nxe4 $2 27. Rxg6 Nxg3 28. Rd6 $18) (26... Re8 $16 27. Qe1 Bc6) 27. gxh5 {[%emt 0:02:17]} ({Less strong is} 27. Qxe5 hxg4 28. Qg5 Qxg5 29. Bxg5 gxf3 $14) 27... Qxg3 {[%emt 0:00:32]} 28. hxg3 {[%emt 0:00:01]} Rc2 {[%emt 0:01:54]} 29. g4 $1 {[%emt 0:00:46] Hoping for g5.} Be6 {[%emt 0:01:08]} 30. Rd2 {[%emt 0:00:19]} Rc1+ {[%emt 0:01:32]} (30... Rxd2 {might work better.} 31. Bxd2 Nd7) 31. Kf2 {[%emt 0:00:05] Strongly threatening Rd8+.} Kh7 {[%emt 0:00:31]} 32. Kg3 {[%emt 0:11:28]} Re1 {[%emt 0:01:59]} 33. Bc5 {[%emt 0:01:03]} Nd7 {[%emt 0:01:25]} 34. Bb4 {[%emt 0:00:04][%cal Od2d7]} Rc1 {[%emt 0:00:53]} 35. Rd6 {[%emt 0:01:04] Against Nb6} Nb8 {[%emt 0:03:18]} 36. Rb6 {[%emt 0:01:05]} Bc4 {[%emt 0:00:59]} 37. Rxb7 {[%emt 0:00:35]} Nc6 {[%emt 0:00:05]} 38. Bd6 {[%emt 0:03:55]} ({Better is} 38. Bc3 $18) 38... Rd1 $16 {[%emt 0:02:03]} 39. Bb8 {[%emt 0:04:06]} f6 {[%emt 0:03:58]} (39... Nxb8 $16 40. Rxb8 Rb1) 40. Bh3 $2 {[%emt 0:04:06]} (40. g5 $1 $18 {is the precise move to win.}) 40... Nd4 {[%emt 0:03:51] [#]} (40... Kh6 $142) 41. g5 $1 {[%emt 0:04:29] aiming for gxf6.} Rg1+ {[%emt 0:13:50] [#]} 42. Kf2 $1 {[%emt 0:00:04]} ({But not} 42. Bg2 $6 Bf1 43. Kf2 (43. g6+ Kh6 $11) 43... Rxg2+ 44. Kxf1 Rxg5 $14) 42... Rxg5 {[%emt 0:02:04]} 43. Bg4 {[%emt 0:00:03]} Be6 {[%emt 0:04:43]} 44. Bxe6 {[%emt 0:01:33]} Nxe6 {[%emt 0:00:00]} 45. Rxb5 {[%emt 0:00:00] And now a4 would win.} Rxh5 $18 {[%emt 0:00:19][%mdl 4096] Endgame KRB-KRN} 46. Ba7 {[%emt 0:02:09]} Rh2+ {[%emt 0:00:15]} 47. Kg1 {[%emt 0:01:47]} Rc2 {[%emt 0:01:46]} 48. Be3 {[%emt 0:01:05] Inhibits Rc1+.} Kg6 {[%emt 0:04:08]} (48... Rc4 {was worth a try.} 49. Kf2 Ra4) 49. a4 {[%emt 0:04:50][%cal Ba3a4,Ba4a5,Ba5a6,Ba6a7][%mdl 32]} Re2 {[%emt 0:06:25]} 50. Rb3 {[%emt 0:00:50]} (50. Bf2 $18) 50... Nd4 $2 {[%emt 0:00:27][%mdl 8192] This move loses the game for Black.} (50... Re1+ $16 51. Kf2 Ra1) 51. Kf1 {[%emt 0:02:32] Black must now prevent Bxd4. White is clearly winning.} Rc2 {[%emt 0:00:58]} 52. Bxd4 {[%emt 0:00:02]} exd4 {[%emt 0:00:04]} 53. a5 {[%emt 0:00:14]} d3 {[%emt 0:00:33]} 54. Ke1 {[%emt 0:00:39]} Kg5 {[%emt 0:00:20]} 55. a6 {[%emt 0:00:18] a7 is the strong threat.} Kf4 {[%emt 0:00:04]} 56. a7 {[%emt 0:00:57]} Ke3 {[%emt 0:00:03] [#]} 57. Rxd3+ $3 {[%emt 0:00:08][%mdl 512] Weighted Error Value: White=0.14 (very precise) /Black=0.23 (precise)} 1-0

[Event "1st Doppelbauer Kiel IM 2022"]
[Site "Kiel"]
[Date "2022.07.01"]
[Round "4.4"]
[White "Lanka, Zigurds"]
[Black "Ermitsch, Magnus"]
[Result "1-0"]
[ECO "B47"]
[WhiteElo "2397"]
[BlackElo "2222"]
[Annotator "TA"]
[PlyCount "111"]
[EventDate "2022.06.30"]
[EventType "tourn"]
[EventCountry "GER"]
[SourceTitle "playchess.com"]
[Source "ChessBase"]
[SourceQuality "1"]
[TimeControl "40/5400+30:1800+30"]

{[%evp 11,111,15,34,18,11,0,0,0,0,0,0,0,0,0,0,0,0,0,0,0,0,0,0,0,0,0,0,0,4,6,8,13,137,130,131,56,69,62,82,4,135,135,135,125,127,65,162,123,131,138,136,128,229,216,583,587,531,568,536,543,517,488,457,498,507,487,422,275,478,429,638,623,583,524,519,519,504,501,471,322,260,305,321,320,319,316,285,268,364,364,955,805,29954,9882,29979,29979,29979,29979,29991,29992,29993,29994]} 1. e4 {[%emt 0:05:54]} c5 {[%emt 0:00:13]} 2. Nf3 {[%emt 0:00:18]} e6 {[%emt 0:00:09]} 3. d4 {[%emt 0:00:07]} cxd4 {[%emt 0:00:09]} 4. Nxd4 {[%emt 0:00:07]} Nc6 {[%emt 0:00:09]} 5. Nc3 {[%emt 0:00:09]} Qc7 {[%emt 0:00:10]} 6. Be2 {[%emt 0:00:32]} Nf6 {[%emt 0:00:34]} 7. a3 {[%emt 0:00:37] B47: Sicilian: Taimanov: 5 Nc3 Qc7 6 f4, 6 g3 and 6 Be2.} a6 {[%emt 0:01:21]} 8. f4 {[%emt 0:00:49]} Nxd4 {[%emt 0:00:15]} 9. Qxd4 {[%emt 0:00:12] The position is equal.} Bc5 {[%emt 0:00:05]} 10. Qd3 {[%emt 0:00:28]} d5 {[%emt 0:00:06]} 11. e5 {[%emt 0:01:31]} Nd7 {[%emt 0:00:07]} 12. Be3 {[%emt 0:00:33]} O-O {[%emt 0:00:08]} 13. Bxc5 {[%emt 0:01:02]} Nxc5 {[%emt 0:05:05]} 14. Qd4 {[%emt 0:04:44]} Bd7 {[%emt 0:03:58]} 15. O-O {[%emt 0:03:39][%cal Of4f5]} Rac8 {[%emt 0:07:03]} 16. Bd3 {[%emt 0:05:12] [#]} Qb6 $146 {[%emt 0:02:17]} ({Predecessor:} 16... Nxd3 17. cxd3 Qc5 18. Ne2 Qc2 19. Rf2 Qb3 20. Nc3 Rc6 21. Rd2 Rfc8 22. Kf2 a5 {0-1 (65) Lanka,Z (2391)-Hess,M (2378) Austria 2020}) 17. Ne2 {[%emt 0:17:42]} Rc7 {[%emt 0:05:52]} 18. Rf2 {[%emt 0:55:54]} Rfc8 {[%emt 0:01:53]} 19. Raf1 {[%emt 0:00:00]} a5 {[%emt 0:12:13]} 20. g4 {[%emt 0:00:00]} Rc6 {[%emt 0:02:24]} 21. f5 {[%emt 0:00:00][%cal Bf4f5,Bf5f6][%mdl 32]} Qd8 {[%emt 0:17:11]} (21... exf5 $11 {remains equal.} 22. gxf5 Nxd3 23. cxd3 Qxd4 24. Nxd4 Rh6) 22. f6 $16 {[%emt 0:00:00]} g6 {[%emt 0:01:23][%cal Oc5e4] [#]} 23. h4 {[%emt 0:00:00]} (23. Qe3 $1 $16) 23... Ne4 {[%emt 0:03:46]} 24. Rh2 {[%emt 0:00:00] aiming for h5.} ({Not} 24. Bxe4 Rc4 25. Qd2 Rxe4 $17) 24... Qb6 $1 {[%emt 0:10:19] [#]} 25. Bxe4 {[%emt 0:00:00]} ({White should play} 25. c3 $1 $16) 25... Qxd4+ {[%emt 0:02:40]} (25... dxe4 $11 26. Rf4 Qc7) 26. Nxd4 {[%emt 0:00:00]} Rc4 {[%emt 0:00:17] [#]} 27. c3 {[%emt 0:00:00]} dxe4 {[%emt 0:00:12]} 28. Re1 {[%emt 0:00:00]} (28. Re2 $16) 28... Bc6 {[%emt 0:02:26]} (28... b5 $1 $14) 29. Rd2 {[%emt 0:00:00]} Bd5 {[%emt 0:02:11]} 30. Nc2 {[%emt 0:00:00] White is much more active.} R4c5 {[%emt 0:01:23]} 31. Red1 {[%emt 0:00:00]} h5 {[%emt 0:09:52]} (31... Rf8 $16 {might work better.}) 32. gxh5 $18 {[%emt 0:00:00]} Bb3 $2 {[%emt 0:00:46]} (32... gxh5 33. Kh2 Kh7) 33. hxg6 {[%emt 0:00:00]} fxg6 {[%emt 0:00:28]} 34. Rd8+ {[%emt 0:00:00]} Rxd8 {[%emt 0:00:08]} 35. Rxd8+ {[%emt 0:00:00][%mdl 4096] Endgame KRB-KRN} Kf7 {[%emt 0:10:47]} 36. Rd7+ {[%emt 0:00:00]} Kf8 {[%emt 0:00:00]} 37. Nd4 {[%emt 0:00:00]} Ba2 {[%emt 0:00:00]} 38. Kf2 {[%emt 0:00:36]} Rxe5 {[%emt 0:00:00]} 39. Ke3 {[%emt 0:09:54]} Bd5 {[%emt 0:00:00]} (39... a4 40. Rxb7 Rc5) 40. b3 {[%emt 0:00:00] And now c4 would win.} b5 {[%emt 0:00:00] Inhibits c4.} (40... a4 $142 41. c4 (41. bxa4 Rh5 $18) 41... Bc6 42. Nxc6 bxc6 43. bxa4 Ra5 44. Kxe4 Rxa4) 41. Rc7 {[%emt 0:26:08] Black must now prevent a4.} Rh5 {[%emt 0:04:57]} 42. c4 {[%emt 0:00:00]} bxc4 {[%emt 0:03:45]} 43. bxc4 {[%emt 0:00:00]} Bxc4 {[%emt 0:03:19]} 44. Rxc4 {[%emt 0:00:00] Rc7 would kill now. KRN-KR} Kf7 {[%emt 0:00:20]} 45. a4 {[%emt 0:00:00]} Rxh4 {[%emt 0:05:01]} 46. Rc6 {[%emt 0:00:00]} Rh3+ {[%emt 0:02:19]} 47. Kxe4 {[%emt 0:00:00]} Rh4+ {[%emt 0:01:29]} 48. Ke3 {[%emt 0:00:00]} Rh3+ {[%emt 0:00:31]} 49. Kd2 {[%emt 0:00:00]} e5 {[%emt 0:03:07]} 50. Nb5 {[%emt 0:00:00] Strongly threatening Nc3.} g5 $2 {[%emt 0:00:55]} (50... Rf3 51. Ra6 Rf2+ 52. Ke3 Rxf6 53. Rxa5 Rb6) 51. Nc3 {[%emt 0:00:00] Ne4 is the strong threat.} g4 {[%emt 0:03:24]} 52. Ne4 {[%emt 0:00:00] Threatening mate with Ng5+.} Kg6 {[%emt 0:09:23]} 53. f7+ {[%emt 0:00:00] White mates.} Kg7 {[%emt 0:00:30]} 54. Ng5 {[%emt 0:00:00]} Rh5 {[%emt 0:00:00] [#]} 55. Rc8 $1 {[%emt 0:00:00]} Rh2+ {[%emt 0:00:00]} (55... Kf6 56. Rg8) 56. Ke3 {[%emt 0:00:00] Weighted Error Value: White=0.15 (very precise) /Black=0.61} 1-0

[Event "1st Doppelbauer Kiel IM 2022"]
[Site "Kiel"]
[Date "2022.07.01"]
[Round "4.5"]
[White "Zavgorodniy, Sergiy"]
[Black "Junge, Ralph"]
[Result "1/2-1/2"]
[ECO "E14"]
[WhiteElo "2423"]
[BlackElo "2224"]
[Annotator "TA"]
[PlyCount "50"]
[EventDate "2022.06.30"]
[EventType "tourn"]
[EventCountry "GER"]
[SourceTitle "playchess.com"]
[Source "ChessBase"]
[SourceQuality "1"]
[TimeControl "40/5400+30:1800+30"]

{[%evp 11,50,19,31,9,56,0,12,6,27,16,0,4,4,0,0,0,0,0,-7,-2,0,-102,69,76,79,45,56,39,70,16,79,0,0,0,0,0,0,0,0,-13,-19]} 1. d4 {[%emt 0:01:05]} e6 {[%emt 0:28:12]} 2. Nf3 {[%emt 0:01:17]} Nf6 {[%emt 0:02:45]} 3. e3 {[%emt 0:01:19]} b6 {[%emt 0:03:27]} 4. Bd3 {[%emt 0:00:59]} Bb7 {[%emt 0:03:18]} 5. O-O {[%emt 0:01:45]} Be7 {[%emt 0:03:56]} 6. c4 {[%emt 0:00:55]} Ne4 {[%emt 0:07:28]} 7. Nc3 {[%emt 0:05:30] E14: Queen's Indian: Classical Variation (4 e3).} f5 {[%emt 0:10:22]} (7... Nxc3 $11 {should be considered.} 8. bxc3 O-O) 8. d5 {[%emt 0:02:24]} Nxc3 {[%emt 0:04:47]} 9. bxc3 {[%emt 0:00:14]} O-O {[%emt 0:02:02]} 10. e4 {[%emt 0:02:39]} Na6 {[%emt 0:02:37]} 11. exf5 {[%emt 0:01:34] [#]} Nc5 $146 {[%emt 0:01:57]} ({Predecessor:} 11... exf5 12. Qc2 g6 13. Bh6 Rf7 14. Ne5 Rf6 15. Rae1 d6 16. Nf3 Bc8 17. Re2 Bd7 {1-0 (63) Christensen,J (2240)-Simonsen,J Aarhus 1993}) 12. fxe6 {[%emt 0:14:10]} dxe6 {[%emt 0:00:12]} 13. Ba3 {[%emt 0:00:17]} exd5 {[%emt 0:01:12]} 14. Re1 $1 {[%emt 0:02:35]} Bd6 {[%emt 0:07:07]} 15. Bxc5 {[%emt 0:03:34]} Bxc5 {[%emt 0:00:13]} 16. Qc2 {[%emt 0:15:37] [#]} (16. Re5 $11 {keeps the balance.}) 16... dxc4 $2 {[%emt 0:01:45]} (16... Rxf3 $1 $17 {[%mdl 512]} 17. gxf3 (17. Bxh7+ $2 Kh8 $19) 17... Qh4) 17. Bxh7+ $14 {[%emt 0:00:56]} Kh8 {[%emt 0:00:17]} 18. Be4 {[%emt 0:00:10]} Bxe4 {[%emt 0:02:27]} 19. Qxe4 {[%emt 0:08:39]} Qd3 $1 {[%emt 0:00:37]} 20. Qh4+ {[%emt 0:01:10]} ({White should try} 20. Rad1 $1 $14 Qxe4 21. Rxe4) 20... Qh7 {[%emt 0:02:40]} (20... Kg8 $11) 21. Qxc4 {[%emt 0:14:41]} (21. Re4 $16) 21... Rxf3 $1 $11 {[%emt 0:00:06] The position is equal.} 22. gxf3 {[%emt 0:00:11]} Bxf2+ $1 {[%emt 0:00:03]} 23. Kh1 {[%emt 0:00:14] Threatens to win with Re2.} Bxe1 {[%emt 0:00:53]} 24. Rxe1 {[%emt 0:00:06]} Qf5 {[%emt 0:03:38]} 25. Qg4 {[%emt 0:03:45]} Rf8 {[%emt 0:00:51] Weighted Error Value: White=0.28 (precise) /Black=0.20 (precise)} 1/2-1/2

[Event "1st Doppelbauer Kiel IM 2022"]
[Site "Kiel"]
[Date "2022.07.02"]
[Round "5.1"]
[White "Junge, Ralph"]
[Black "Beeck, Mats"]
[Result "1-0"]
[ECO "A03"]
[WhiteElo "2224"]
[BlackElo "2169"]
[Annotator "RC"]
[PlyCount "81"]
[EventDate "2022.06.30"]
[EventType "tourn"]
[EventCountry "GER"]
[SourceTitle "playchess.com"]
[Source "ChessBase"]
[SourceQuality "1"]
[TimeControl "40/5400+30:1800+30"]

1. g3 {[%emt 0:10:04]} d5 {[%emt 0:01:17]} 2. f4 {[%emt 0:00:57]} h5 {[%emt 0:02:42]} 3. Nf3 {[%emt 0:14:08]} h4 {[%emt 0:00:26]} 4. Nxh4 {[%emt 0:09:01]} e5 {[%emt 0:06:44]} 5. Ng2 {[%emt 0:03:04]} exf4 {[%emt 0:09:44]} 6. Nxf4 {[%emt 0:02:52]} Bd6 {[%emt 0:18:26]} 7. e3 {[%emt 0:04:25]} g5 {[%emt 0:12:25]} 8. Nh5 {[%emt 0:04:11]} Nf6 {[%emt 0:03:08]} 9. Be2 {[%emt 0:07:13]} Nxh5 {[%emt 0:05:26]} 10. Bxh5 {[%emt 0:00:09]} g4 {[%emt 0:00:18]} 11. Bxg4 {[%emt 0:00:26]} Bxg3+ {[%emt 0:00:20]} 12. Kf1 {[%emt 0:00:12]} Nc6 {[%emt 0:12:38]} 13. Bf3 {[%emt 0:13:38]} Bh3+ {[%emt 0:02:37]} 14. Ke2 {[%emt 0:00:07]} Bd6 {[%emt 0:01:23]} 15. d4 {[%emt 0:03:13]} Qd7 {[%emt 0:01:10]} 16. Nc3 {[%emt 0:02:32]} Bg4 {[%emt 0:01:31]} 17. Kd2 {[%emt 0:01:10]} Be6 {[%emt 0:04:25]} 18. a3 {[%emt 0:06:57]} O-O-O {[%emt 0:01:09]} 19. h4 {[%emt 0:00:33]} Qe7 {[%emt 0:03:53]} 20. Nxd5 {[%emt 0:02:16]} Bxd5 {[%emt 0:00:07]} 21. Bxd5 {[%emt 0:00:02]} Nxd4 {[%emt 0:01:55]} 22. exd4 {[%emt 0:03:45]} Bf4+ {[%emt 0:00:07]} 23. Kc3 {[%emt 0:00:46]} Bxc1 {[%emt 0:00:18]} 24. Bxb7+ {[%emt 0:00:55]} Kxb7 {[%emt 0:00:06]} 25. Qf3+ {[%emt 0:00:28]} Kb8 {[%emt 0:00:52]} 26. Raxc1 {[%emt 0:00:04]} Rxh4 {[%emt 0:01:54]} 27. Rxh4 {[%emt 0:00:16]} Qxh4 {[%emt 0:00:02]} 28. Rd1 {[%emt 0:00:19]} Qe7 {[%emt 0:02:34]} 29. Kb3 {[%emt 0:01:47]} Qe6+ {[%emt 0:00:39]} 30. d5 {[%emt 0:00:59]} Qg6 {[%emt 0:00:46]} 31. c4 {[%emt 0:00:51]} Qb6+ {[%emt 0:02:45]} 32. Ka2 {[%emt 0:00:13]} Qc5 {[%emt 0:00:06]} 33. Rc1 {[%emt 0:00:41]} Rf8 {[%emt 0:00:31]} 34. Rc3 {[%emt 0:01:30]} f5 {[%emt 0:00:08]} 35. Rb3+ {[%emt 0:00:33]} Kc8 {[%emt 0:00:01]} 36. Qe2 {[%emt 0:01:43]} Qd6 {[%emt 0:00:31]} 37. Qf2 {[%emt 0:01:12]} f4 {[%emt 0:01:07]} 38. Qxa7 {[%emt 0:02:29]} f3 {[%emt 0:00:18]} 39. c5 {[%emt 0:00:10]} Qf4 {[%emt 0:01:26]} 40. Qa8+ {[%emt 0:01:54]} Kd7 {[%emt 0:00:04]} 41. Qc6+ {[%emt 0:30:07]} 1-0